Workbook

Sheet Лист1
D1: Таблица 1
E2: к Приложению 3
B4: Информация об изменениях объемов финансирования и целевых показателей муниципальной программы города Усолье-Сибирское «Обеспечение населения доступным жильем» на 2019-2027 годы за 2025 год
B5: Наименование программы, подпрограммы, основного мероприятия, мероприятия, проекта | C5: Источники финансирования / Наименование целевого показателя | D5: Предусмотренный объем финансирования (тыс. руб.) / Значение целевого показателя
D6: Редакция программы от 18.02.2025 № 281-па (на начало отчетного периода) | E6: Редакция программы от 26.12.2025 № 2474-па (на конец отчетного периода)
B7: 1 | C7: 2 | D7: 3 | E7: 4
B8: Муниципальная программа "Обеспечение населения доступным жильем" на 2019 -2027 годы | C8: Всего: | D8: =D9+D10+D11 -> 103,900.15 | E8: =E9+E10+E11 -> 210,797.26
C9: Местный бюджет | D9: =D15 -> 7,293.51 | E9: 69,138.91
C10: Областной бюджет | D10: 37,412.78 | E10: 82,464.50
C11: Средства Фонда | D11: 59,193.85 | E11: 59,193.85
C12: Целевой показатель 1 Количество граждан, переселенных из многоквартирных домов, признанных в установленном порядке аварийными и подлежащими сносу (человек) | D12: 266* | E12: 265*
C13: Целевой показатель 2 Площадь снесенного аварийного жилищного фонда, признанного после 01 января 2012 года в установленном порядке аварийным и подлежащим сносу в связи с физическим износом в процессе эксплуатации (кв.м). | D13: 14,283.94 | E13: 2,241.08
B14: Подпрограмма 1 "Переселение граждан из аварийного жилищного фонда в городе Усолье-Сибирское" на 2019-2027 годы | C14: Всего: | D14: =D15+D16+D17 -> 103,900.15 | E14: =E15+E16+E17 -> 210,797.26
C15: Местный бюджет | D15: =D24+D29+D34+D37+D40 -> 7,293.51 | E15: =E24+E29+E34+E37+E40 -> 69,138.91
C16: Областной бюджет | D16: =D25+D30 -> 37,412.78 | E16: =E25+E30 -> 82,464.50
C17: Средства Фонда | D17: =D26 -> 59,193.85 | E17: =E26 -> 59,193.85
C18: Целевой показатель 1 Количество граждан, переселенных из многоквартирных домов, признанных в установленном порядке аварийными и подлежащими сносу (человек) | D18: 266* | E18: 265*
C19: Целевой показатель 2 Площадь снесенного аварийного жилищного фонда, признанного после 01 января 2012 года в установленном порядке аварийным и подлежащим сносу в связи с физическим износом в процессе эксплуатации (кв.м). | D19: 14,283.94 | E19: 2,241.08
C20: Целевой показатель 3 Количество выданных заключений специализированной организации, проводившей обследования жилых домов (шт.) | D20: 0 | E20: 2
C21: Целевой показатель 5 Количество разработанной проектной документации (ед.) | D21: 1 | E21: 1
C22: Целевой показатель 6 Количество жилых помещений, признанных аварийными до 01.01.2017 года, по которым проведена оценка рыночной стоимости (ед.) | D22: 0 | E22: 3
B23: Основное мероприятие 1.1. Переселение граждан, проживающих в домах, признанных непригодными для проживания | C23: Всего: | D23: =D24+D25+D26 -> 101,106.63 | E23: =E24+E25+E26 -> 207,866.76
C24: Местный бюджет | D24: 4,500.00 | E24: 66,208.41
C25: Областной бюджет | D25: 37,412.78 | E25: 82,464.50
C26: Средства Фонда | D26: 59,193.85 | E26: 59,193.85
C27: Целевой показатель 1 Количество граждан, переселенных из многоквартирных домов, признанных в установленном порядке аварийными и подлежащими сносу (человек) | D27: 266* | E27: 265*
B28: Основное мероприятие 1.2. Снос аварийного жилищного фонда, признанного после 01.01. 2012 года в установленном порядке аварийным и подлежащим сносу, в связи с физическим износом в процессе его эксплуатации | C28: Всего: | D28: =D29+D30+D31 -> 2,653.51 | E28: =E29+E30+E31 -> 2,587.00
C29: Местный бюджет | D29: 2,653.51 | E29: 2,587.00
C30: Областной бюджет | D30: 0.00 | E30: 0.00
C31: Средства Фонда | D31: 0.00 | E31: 0.00
C32: Целевой показатель 2 Площадь снесенного аварийного жилищного фонда, признанного после 01 января 2012 года в установленном порядке аварийным и подлежащим сносу в связи с физическим износом в процессе эксплуатации (кв.м). | D32: 14,283.94 | E32: 2,241.08
B33: Основное мероприятие 1.3. Обследование технического состояния и выдача заключений на жилые дома | C33: Всего | D33: =D34 -> 140.00 | E33: =E34 -> 88.50
C34: Местный бюджет | D34: 140.00 | E34: 88.50
C35: Целевой показатель 3 Количество выданных заключений специализированной организации, проводившей обследования жилых домов (шт.) | D35: 0 | E35: 2
B36: Основное мероприятие 1.5. Проектирование строительства многоквартирных домов | C36: Всего | D36: =D37 -> 0.00 | E36: =E37 -> 240.00
C37: Местный бюджет | D37: 0.00 | E37: 240.00
C38: Целевой показатель 5 Количество разработанной проектной документации (ед.) | D38: 1 | E38: 1
B39: Основное мероприятие 1.6. Оценка рыночной стоимости жилых помещений, признанных аварийными до 01.01.2017 года | C39: Всего | D39: =D40 -> 0.00 | E39: =E40 -> 15.00
C40: Местный бюджет | D40: 0.00 | E40: 15.00
C41: Целевой показатель 6 Количество жилых помещений, признанных аварийными до 01.01.2017 года, по которым проведена оценка рыночной стоимости (ед.) | D41: 0 | E41: 3
B42: *При внесении изменений в Программу от 18.02.2025 г. № 281-па (далее все изменения в Программу в 2025 году) при корректировке значения целевого показателя допущена ошибка (плановое значение необходимо считать – 373 ед.).
B45: Мэр города Усолье-Сибирское М.В. Торопкин
